fUST/lending_fUST_20260107
["ID","MTS","AMOUNT","RATE_DAILY","PERIOD"]
[400631395,1767751845858,-850.0,0.00031233,5]
[400631396,1767751845867,-2000.0,0.00031408,7]
[400631398,1767751845876,-689.7,0.00031506,31]
[400631399,1767751845885,-1615.48,0.00031506,8]
[400631401,1767751845894,-507.0,0.00031507,14]
[400631403,1767751845903,-7842.62438078,0.00031575,2]
[400631405,1767751845912,-2954.0954701,0.00031597,32]
[400631407,1767751845921,-18711.41,0.000316,2]
[400631409,1767751845931,-507.0,0.00031644,14]
[400631410,1767751845940,-1000.0,0.00031676,30]
[400631411,1767751845949,-1000.0,0.00031676,30]
[400631412,1767751845959,-1000.0,0.00031676,30]
[400631413,1767751845968,-500.0,0.00031781,15]
[400631414,1767751845978,-950.0,0.00031781,5]
[400631415,1767751845987,-190.2708929,0.000319,120]
[400631416,1767751845996,-185.65429275,0.000319,120]
[400631417,1767751846006,-163.65081324,0.000319,120]
[400631418,1767751846015,-721.64697953,0.000319,120]
[400631419,1767751846025,-172.33135591,0.000319,120]
[400631420,1767751846135,-198.36643638,0.000319,120]
[400631421,1767751846145,-163.4725449,0.000319,120]
[400631422,1767751846154,-194.20318295,0.000319,120]
[400631423,1767751846164,-1041.66666667,0.00032,30]
[400631424,1767751846173,-689.7,0.00032054,32]
[400631425,1767751846183,-2000.0,0.00032189,7]
[400631426,1767751846193,-500.0,0.00032329,15]
[400631427,1767751846202,-1051.53804054,0.00032329,5]
[400631428,1767751846212,-240.42,0.000324,7]
[400631429,1767751846221,-196.01,0.000324,7]
[400631430,1767751846231,-2362.92,0.000324,7]
[400631431,1767751846240,-10000.0,0.000324,120]
[400631432,1767751846249,-7842.62438078,0.00032533,2]
[400631433,1767751846259,-689.7,0.00032602,33]
[400631434,1767751846268,-300.0,0.00032603,2]
[400631435,1767751846276,-300.0,0.00032603,2]
[400631438,1767751846285,-300.0,0.00032603,2]
[400631440,1767751846296,-300.0,0.00032603,2]
[400631442,1767751846305,-300.0,0.00032603,2]
[400631443,1767751846315,-300.0,0.00032603,2]
[400631444,1767751846325,-300.0,0.00032603,2]
[400631445,1767751846334,-300.0,0.00032603,2]
[400631446,1767751846343,-300.0,0.00032603,2]
[400631447,1767751846352,-300.0,0.00032603,2]
[400631448,1767751846361,-300.0,0.00032603,2]
[400631449,1767751846370,-300.0,0.00032603,2]
[400631450,1767751846379,-300.0,0.00032603,2]
[400631451,1767751846387,-300.0,0.00032603,2]
[400631452,1767751846396,-300.0,0.00032603,2]
[400631453,1767751846405,-300.0,0.00032603,2]
[400631454,1767751846414,-300.0,0.0003263,2]
[400631455,1767751846423,-300.0,0.0003263,2]
[400631456,1767751846433,-300.0,0.0003263,2]
[400631457,1767751846442,-300.0,0.0003263,2]
[400631458,1767751846451,-300.0,0.0003263,2]
[400631459,1767751846461,-300.0,0.0003263,2]
[400631460,1767751846471,-300.0,0.0003263,2]
[400631461,1767751846482,-300.0,0.0003263,2]
[400631462,1767751846492,-300.0,0.0003263,2]
[400631463,1767751846502,-300.0,0.0003263,2]
[400631464,1767751846512,-300.0,0.0003263,2]
[400631465,1767751846522,-300.0,0.0003263,2]
[400631466,1767751846532,-300.0,0.0003263,2]
[400631467,1767751846541,-300.0,0.0003263,2]
[400631468,1767751846551,-300.0,0.0003263,2]
[400631469,1767751846561,-300.0,0.0003263,2]
[400631470,1767751846571,-418.4,0.0003266,5]
[400631471,1767751846581,-284.0,0.00032696,30]
[400631472,1767751846590,-895.0,0.00032696,30]
[400631473,1767751846600,-870.0,0.00032696,30]
[400631474,1767751846609,-2092.97,0.000327,14]
[400631475,1767751846619,-1615.48,0.00032876,120]
[400631476,1767751846628,-500.0,0.00032877,30]
[400631477,1767751846638,-49790.58,0.00032877,10]
[400631478,1767751846648,-41492.15,0.00032877,10]
[400631479,1767751846658,-34576.8,0.00032877,10]
[400631480,1767751846667,-190.2708929,0.000329,120]
[400631481,1767751846677,-185.65429275,0.000329,120]
[400631482,1767751846686,-721.64697953,0.000329,120]
[400631483,1767751846695,-198.36643638,0.000329,120]
[400631484,1767751846705,-163.4725449,0.000329,120]
[400631485,1767751846715,-507.0,0.0003291,30]
[400631486,1767751846724,-2000.0,0.0003297,7]
[400631487,1767751846734,-151.0,0.00033,31]
[400631488,1767751846743,-1041.66666667,0.00033,120]
[400631489,1767751846754,-153.23017309,0.00033,20]
[400631490,1767751846763,-1041.66666667,0.00033,10]
[400631491,1767751846772,-3246.94925162,0.00033025,34]
[400631492,1767751846782,-493.61528269,0.00033068,120]
[400631493,1767751846791,-689.7,0.0003315,34]
[400631494,1767751846800,-1695.5655,0.0003322,30]
[400631495,1767751846810,-523.0,0.00033226,30]
[400631496,1767751846820,-500.0,0.00033425,30]
[400631497,1767751846829,-303.40892131,0.00033429,2]
[400631498,1767751846839,-1213.63568523,0.00033429,2]
[400631499,1767751846849,-2730.68029177,0.00033429,2]
[400631500,1767751846859,-4854.54274092,0.00033429,2]
[400631501,1767751846868,-7585.22303268,0.00033429,2]
[400631502,1767751846878,-10922.72116707,0.00033429,2]
[400631503,1767751846888,-747.08409079,0.00033429,2]
[400631504,1767751846898,-2988.33636317,0.00033429,2]
[400631505,1767751846908,-6723.75681714,0.00033429,2]
[400631506,1767751846917,-7842.62438078,0.00033492,2]
[400631507,1767751846927,-38000.0,0.00033615,10]
[400631508,1767751846936,-151.0,0.00033615,31]
[400631509,1767751846946,-151.0,0.00033615,31]
[400631510,1767751846956,-151.0,0.00033615,31]
[400631511,1767751846966,-153.683464,0.00033615,31]
[400631512,1767751846975,-38000.0,0.00033624,10]
[400631513,1767751846985,-151.0,0.00033624,31]
[400631514,1767751846995,-151.0,0.00033624,31]
[400631515,1767751847006,-212.83706,0.00033624,28]
[400631516,1767751847017,-212.83706,0.00033624,28]
[400631517,1767751847027,-212.83706,0.00033624,28]
[400631518,1767751847037,-212.83706,0.00033624,28]
[400631519,1767751847047,-151.0,0.00033624,31]
[400631520,1767751847057,-151.0,0.00033632,31]
[400631521,1767751847068,-151.0,0.00033632,31]
[400631522,1767751847078,-38000.0,0.00033632,10]
[400631523,1767751847088,-151.0,0.00033641,31]
[400631524,1767751847096,-407.909863,0.00033641,31]
[400631525,1767751847104,-407.909863,0.00033641,31]
[400631526,1767751847113,-407.909863,0.00033641,31]
[400631527,1767751847122,-407.909863,0.00033641,31]
[400631528,1767751847131,-151.0,0.00033641,31]
[400631529,1767751847140,-151.0,0.00033641,31]
[400631530,1767751847150,-38000.0,0.00033641,10]
[400631531,1767751847159,-38000.0,0.0003365,10]
[400631532,1767751847170,-151.0,0.0003365,31]
[400631533,1767751847183,-151.0,0.0003365,31]
[400631534,1767751847198,-151.0,0.0003365,31]
[400631535,1767751847212,-239.736725,0.0003365,31]
[400631536,1767751847223,-239.736725,0.0003365,31]
[400631537,1767751847237,-239.736725,0.0003365,31]
[400631538,1767751847252,-239.736725,0.0003365,31]
[400631539,1767751847265,-19216.14087235,0.0003365,10]
[400631540,1767751847279,-154.351335,0.0003365,31]
[400631541,1767751847291,-151.0,0.0003365,31]
[400631542,1767751847304,-689.7,0.00033698,35]
[400631543,1767751847320,-15250.14056551,0.00033698,2]
[400631544,1767751847334,-226.527387,0.00033698,31]
[400631545,1767751847347,-226.527387,0.00033698,31]
[400631546,1767751847360,-226.527387,0.00033698,31]
[400631547,1767751847373,-226.527387,0.00033698,31]
[400631548,1767751847386,-151.0,0.00033698,31]
[400631549,1767751847401,-151.0,0.00033698,31]
[400631550,1767751847414,-164.70126,0.00033698,31]
[400631551,1767751847427,-210.0,0.00033699,5]
[400631552,1767751847449,-2000.0,0.00033751,7]
[400631553,1767751847461,-151.0,0.00033859,31]
[400631554,1767751847472,-263.532421,0.00033859,31]
[400631555,1767751847488,-151.0,0.00033859,31]
[400631556,1767751847501,-151.0,0.00033859,31]
[400631557,1767751847514,-151.0,0.00033859,31]
[400631558,1767751847527,-151.0,0.00033859,31]
[400631559,1767751847542,-151.0,0.00033859,31]
[400631560,1767751847557,-190.2708929,0.000339,120]
[400631561,1767751847572,-721.64697953,0.000339,120]
[400631562,1767751847583,-616.15,0.000339,2]
[400631563,1767751847595,-18711.41,0.000339,14]
[400631564,1767751847606,-151.0,0.000339,31]
[400631565,1767751847619,-151.0,0.000339,31]
[400631566,1767751847633,-151.0,0.000339,31]
[400631567,1767751847647,-293.012089,0.000339,31]
[400631568,1767751847659,-158.997356,0.000339,31]
[400631569,1767751847670,-158.997356,0.000339,31]
[400631570,1767751847682,-158.997356,0.000339,31]
[400631571,1767751847694,-158.997356,0.000339,31]
[400631572,1767751847705,-151.0,0.000339,31]
[400631573,1767751847717,-151.0,0.000339,31]
[400631574,1767751847727,-151.0,0.000339,31]
[400631575,1767751847740,-517.09,0.00033973,30]
[400631576,1767751847751,-180.37692737,0.00034,120]
[400631577,1767751847763,-151.0,0.00034,31]
[400631578,1767751847775,-151.0,0.00034,31]
[400631579,1767751847787,-151.0,0.00034,31]
[400631580,1767751847799,-151.0,0.00034,31]
[400631581,1767751847811,-1041.66666667,0.00034,10]
[400631582,1767751847823,-155.0,0.00034055,66]
[400631583,1767751847839,-250.119,0.00034079,2]
[400631584,1767751847851,-270.374,0.00034079,2]
[400631585,1767751847863,-150.516,0.00034079,2]
[400631586,1767751847874,-151.525,0.00034079,2]
[400631587,1767751847888,-250.0,0.00034079,2]
[400631588,1767751847900,-267.209,0.00034079,2]
[400631589,1767751847912,-628.0,0.00034079,2]
[400631590,1767751847924,-1365.0,0.00034079,2]
[400631591,1767751847935,-2145.0,0.00034079,2]
[400631592,1767751847947,-714.0,0.00034079,2]
[400631593,1767751847958,-195.223,0.00034079,2]
[400631594,1767751847970,-417.0,0.00034079,2]
[400631595,1767751847982,-507.0,0.00034175,30]
[400631596,1767751847994,-507.0,0.00034175,30]
[400631597,1767751848006,-689.7,0.00034246,36]
[400631598,1767751848020,-1615.48,0.00034246,120]
[400631599,1767751848031,-418.4,0.00034258,6]
[400631600,1767751848043,-7842.62438078,0.0003445,2]
[400631601,1767751848054,-3548.52190336,0.00034453,36]
[400631602,1767751848067,-151.0,0.00034463,31]
[400631603,1767751848080,-151.0,0.00034463,31]
[400631604,1767751848091,-151.0,0.00034463,31]
[400631605,1767751848103,-151.0,0.00034463,31]
[400631606,1767751848114,-2600.536544,0.00034463,31]
[400631607,1767751848125,-2600.536544,0.00034463,31]
[400631608,1767751848138,-270.0,0.00034521,5]
[400631609,1767751848149,-2000.0,0.00034532,7]
[400631610,1767751848160,-376.8200359,0.00034575,30]
[400631611,1767751848172,-152.81,0.00034683,60]
[400631612,1767751848183,-173.06,0.00034683,60]
[400631613,1767751848194,-1518.19,0.00034683,60]
[400631614,1767751848206,-737.0,0.0003472,11]
[400631615,1767751848217,-152.81,0.00034783,60]
[400631616,1767751848229,-173.06,0.00034783,60]
[400631617,1767751848240,-1518.19,0.00034783,60]
[400631618,1767751848252,-689.7,0.00034794,37]
[400631619,1767751848263,-1000.0,0.00034844,30]
[400631620,1767751848275,-631.0,0.00034844,30]
[400631621,1767751848286,-152.81,0.00034883,60]
[400631622,1767751848298,-173.07658416,0.00034883,60]
[400631623,1767751848309,-1518.19,0.00034883,60]
[400631624,1767751848321,-721.64697953,0.000349,120]
[400631625,1767751848333,-152.81,0.00034983,60]
[400631626,1767751848344,-1518.19,0.00034983,60]
[400631627,1767751848355,-189.4774255,0.00034986,30]
[400631628,1767751848366,-32988.81011133,0.00035,5]
[400631629,1767751848378,-525.34769372,0.00035068,120]
[400631630,1767751848390,-152.81,0.00035083,60]
[400631631,1767751848402,-1518.19,0.00035083,60]
[400631632,1767751848414,-507.0,0.00035125,30]
[400631633,1767751848426,-152.81,0.00035183,60]
[400631634,1767751848436,-1518.19,0.00035183,60]
[400631635,1767751848445,-152.81,0.00035283,60]
[400631636,1767751848455,-1518.19,0.00035283,60]
[400631637,1767751848464,-2000.0,0.00035313,7]
[400631638,1767751848629,-689.7,0.00035342,38]
[400631639,1767751848648,-330.0,0.00035342,5]
[400631640,1767751848659,-152.81,0.00035383,60]
[400631641,1767751848668,-1518.19,0.00035383,60]
[400631642,1767751848679,-240.42,0.000354,7]
[400631643,1767751848688,-196.01,0.000354,7]
[400631644,1767751848697,-2362.92,0.000354,7]
[400631645,1767751848707,-7842.62438078,0.00035408,2]
[400631646,1767751848717,-507.0,0.00035441,30]
[400631647,1767751848726,-152.81,0.00035483,60]
[400631648,1767751848735,-1518.19,0.00035483,60]
[400631649,1767751848745,-2000.0,0.00035523,15]
[400631650,1767751848754,-152.81,0.00035583,60]
[400631651,1767751848764,-1518.19,0.00035583,60]
[400631652,1767751848774,-1022.0,0.000356,60]
[400631653,1767751848784,-2097.67802574,0.00035605,2]
[400631654,1767751848794,-1615.48,0.00035616,120]
[400631655,1767751848803,-151.0,0.00035616,31]
[400631656,1767751848814,-151.0,0.00035616,31]
[400631657,1767751848824,-180.8964439,0.00035616,2]
[400631658,1767751848834,-2097.67802574,0.00035662,2]
[400631659,1767751848843,-152.81,0.00035683,60]
[400631660,1767751848852,-1518.19,0.00035683,60]
[400631661,1767751848862,-151.0,0.00035783,31]
[400631662,1767751848871,-151.0,0.00035783,31]
[400631663,1767751848880,-265.998085,0.00035783,31]
[400631664,1767751848890,-151.0,0.00035783,31]
[400631665,1767751848900,-152.81,0.00035783,60]
[400631666,1767751848909,-1518.19,0.00035783,60]
[400631667,1767751848919,-1000.0,0.00035839,14]
[400631668,1767751848929,-418.4,0.00035857,30]
[400631669,1767751848938,-3858.5035035,0.00035881,38]
[400631670,1767751848948,-152.81,0.00035883,60]
[400631671,1767751848959,-1518.19,0.00035883,60]
[400631672,1767751848970,-689.7,0.0003589,39]
[400631673,1767751848979,-2092.97,0.000359,30]
[400631674,1767751848989,-1326.756,0.000359,30]
[400631675,1767751848998,-1326.756,0.000359,30]
[400631676,1767751849009,-1326.75,0.000359,30]
[400631677,1767751849019,-600.0,0.00035959,2]
[400631678,1767751849029,-152.81,0.00035983,60]
[400631679,1767751849039,-1518.19,0.00035983,60]
[400631680,1767751849048,-167.0,0.00036,30]
[400631681,1767751849059,-2097.67802574,0.00036049,2]
[400631682,1767751849068,-507.0,0.00036074,30]
[400631683,1767751849078,-152.81,0.00036083,60]
[400631684,1767751849089,-1518.19,0.00036083,60]
[400631685,1767751849098,-2000.0,0.00036094,7]
[400631686,1767751849108,-390.0,0.00036164,5]
[400631687,1767751849118,-152.81,0.00036183,60]
[400631688,1767751849126,-1518.19,0.00036183,60]
[400631689,1767751849135,-18711.41,0.000362,14]
[400631690,1767751849145,-152.812033,0.000362,31]
[400631691,1767751849154,-184.409231,0.00036274,30]
[400631692,1767751849163,-152.81,0.00036283,60]
[400631693,1767751849173,-1518.19,0.00036283,60]
[400631694,1767751849182,-2802.79667979,0.00036332,2]
[400631695,1767751849191,-600.0,0.00036333,2]
[400631696,1767751849200,-7842.62438078,0.00036367,2]
[400631697,1767751849210,-152.81,0.00036383,60]
[400631698,1767751849219,-1518.19,0.00036383,60]
[400631699,1767751849228,-689.7,0.00036438,40]
[400631700,1767751849237,-376.8907927,0.00036466,30]
[400631701,1767751849248,-376.8907927,0.00036466,30]
[400631702,1767751849257,-376.8907927,0.00036466,30]
[400631703,1767751849267,-376.8907927,0.00036466,30]
[400631704,1767751849277,-376.8907927,0.00036466,30]
[400631705,1767751849286,-376.8907927,0.00036466,30]
[400631706,1767751849296,-376.8907927,0.00036466,30]
[400631707,1767751849305,-500.0,0.0003648,30]
[400631708,1767751849315,-500.0,0.0003648,30]
[400631709,1767751849324,-152.81,0.00036483,60]
[400631710,1767751849334,-1518.19,0.00036483,60]
[400631711,1767751849343,-7603.66213527,0.00036497,4]
[400631712,1767751849353,-12980.04782453,0.00036497,4]
[400631713,1767751849362,-2301.8847989,0.00036554,2]
[400631714,1767751849371,-152.95342671,0.00036583,60]
[400631715,1767751849381,-1518.19,0.00036583,60]
[400631716,1767751849390,-193.7694829,0.00036603,30]
[400631717,1767751849400,-153.0,0.00036603,30]
[400631718,1767751849410,-612.0594184,0.00036603,30]
[400631719,1767751849419,-600.7991864,0.00036603,30]
[400631720,1767751849429,-193.7694829,0.00036603,30]
[400631721,1767751849438,-600.7991864,0.00036603,30]
[400631722,1767751849448,-153.0,0.00036603,30]
[400631723,1767751849458,-184.409231,0.00036603,30]
[400631724,1767751849468,-600.7991864,0.00036603,30]
[400631725,1767751849477,-184.409231,0.00036603,30]
[400631726,1767751849490,-153.0,0.00036603,30]
[400631727,1767751849500,-600.7991864,0.00036603,30]
[400631728,1767751849509,-193.7694829,0.00036603,30]
[400631729,1767751849520,-184.409231,0.00036603,30]
[400631730,1767751849531,-600.7991864,0.00036603,30]
[400631731,1767751849540,-193.7694829,0.00036603,30]
[400631732,1767751849550,-153.0,0.00036603,30]
[400631733,1767751849561,-184.409231,0.00036603,30]
[400631734,1767751849571,-600.7991864,0.00036603,30]
[400631735,1767751849581,-184.409231,0.00036603,30]
[400631736,1767751849591,-600.7991864,0.00036603,30]
[400631737,1767751849600,-153.0,0.00036603,30]
[400631738,1767751849609,-184.409231,0.00036603,30]
[400631739,1767751849619,-193.7694829,0.00036603,30]
[400631740,1767751849628,-600.7991864,0.00036603,30]
[400631741,1767751849637,-166983.58636343,0.0003663,4]
[400631742,1767751849647,-984.39315493,0.00036648,5]
[400631743,1767751849657,-10000.0,0.0003666,14]
[400631744,1767751849666,-1000.0,0.00036661,14]
[400631745,1767751849676,-1518.19,0.00036683,60]
[400631746,1767751849686,-616.15,0.000367,2]
[400631747,1767751849696,-10000.0,0.00036701,5]
[400631748,1767751849706,-10000.0,0.00036701,30]
[400631749,1767751849715,-160.56089558,0.00036701,5]
[400631750,1767751849725,-500.0,0.00036701,5]
[400631751,1767751849734,-500.0,0.00036701,5]
[400631752,1767751849744,-500.0,0.00036701,5]
[400631753,1767751849753,-500.0,0.00036701,5]
[400631754,1767751849763,-2487.15318209,0.00036701,5]
[400631755,1767751849772,-500.0,0.00036701,5]
[400631756,1767751849781,-1521.16018733,0.00036701,5]
[400631757,1767751849790,-500.0,0.00036701,5]
[400631758,1767751849799,-250.0,0.00036701,5]
[400631759,1767751849809,-500.0,0.00036701,5]
[400631760,1767751849817,-500.0,0.00036701,5]
[400631761,1767751849826,-500.0,0.00036701,5]
[400631762,1767751849835,-250.0,0.00036701,5]
[400631763,1767751849845,-500.0,0.00036701,5]
[400631764,1767751849854,-500.0,0.00036701,5]
[400631765,1767751849863,-250.0,0.00036701,5]
[400631766,1767751849872,-500.0,0.00036701,5]
[400631767,1767751849883,-500.0,0.00036701,5]
[400631768,1767751849892,-302.29046048,0.00036701,5]
[400631769,1767751849901,-151.4684085,0.00036701,5]
[400631770,1767751849911,-500.0,0.00036701,5]
[400631771,1767751849920,-549.77504224,0.00036701,5]
[400631772,1767751849930,-500.0,0.00036701,5]
[400631773,1767751849940,-500.0,0.00036701,5]
[400631774,1767751849949,-500.0,0.00036701,5]
[400631775,1767751849958,-514.84070869,0.00036701,5]
[400631776,1767751849968,-533.88981491,0.00036701,5]
[400631777,1767751849978,-571.52045381,0.00036701,5]
[400631778,1767751849987,-507.0,0.00036707,30]
[400631779,1767751849997,-600.0,0.00036708,2]
[400631780,1767751850006,-1518.19,0.00036783,60]
[400631781,1767751850016,-727.82980881,0.00036867,7]
[400631782,1767751850025,-2000.0,0.00036876,7]
[400631783,1767751850035,-500.0,0.0003688,30]
[400631784,1767751850044,-1518.19,0.00036883,60]
[400631785,1767751850054,-1518.19,0.00036983,60]
[400631786,1767751850064,-527556.46439146,0.00036983,5]
[400631787,1767751851073,-6658.0,0.00015191,2]
[400631788,1767751851083,-151.0,0.00026164,7]
[400631789,1767751851095,-151.0,0.0003365,31]
[400631790,1767751851104,-386.87488742,0.00036983,5]
[400631792,1767751888313,-159.84,0.00011135,2]
[400631793,1767751888343,-179.82,0.00011533,2]
[400631794,1767751888372,-180.18684736,0.00011931,2]
[400631796,1767751965775,500.0,0.00030137,120]
[400631797,1767751971846,171.97642323,0.00025297,120]
[400631804,1767752166375,1022.0,0.0003,120]
[400631805,1767752440451,5000.0,0.00012,2]
[400631806,1767752445059,1000.0,0.00012,2]
[400631807,1767752464309,4000.01,0.00012,2]
[400631808,1767752464330,999.99,0.00012,2]
[400631809,1767752487898,5000.0,0.00012,2]
[400631810,1767752504134,-772.8894135,0.00012026,2]
[400631812,1767752511381,1094.66003096,0.00012026,2]
[400631813,1767752525282,-300.0,0.00012121,2]
[400631815,1767752582373,300.0,0.00012121,2]
[400631816,1767752642746,300.0,0.00012121,2]
[400631817,1767752646438,170.912872,5.958e-05,2]
[400631818,1767752646816,170.912872,0.00011915,2]
[400631835,1767752701430,300.0,0.00012121,2]
[400631836,1767752702191,300.0,0.00012121,2]
[400631838,1767752762333,300.0,0.00012121,2]
[400631840,1767752820681,-6855.89382729,0.00012122,2]
[400631841,1767752820961,-1365.06760949,0.00012122,2]
[400631842,1767752820984,-7269.87478102,0.00012122,2]
[400631843,1767752821307,-195.9588629,0.00012242,2]
[400631844,1767752821336,-500.0,0.00012361,2]
[400631845,1767752821366,-500.0,0.00012361,2]
[400631846,1767752821400,-500.0,0.00012361,2]
[400631847,1767752821429,-500.0,0.00012361,2]
[400631848,1767752821458,-500.0,0.00012361,2]
[400631849,1767752821488,-500.0,0.00012361,2]
[400631850,1767752821516,-500.0,0.00012361,2]
[400631851,1767752821544,-500.0,0.00012361,2]
[400631852,1767752821574,-500.0,0.00012361,2]
[400631853,1767752821604,-108.0922742,0.00012361,2]
[400631854,1767752821740,-391.9077258,0.00012361,2]
[400631855,1767752821772,-417.40395865,0.00012361,2]
[400631856,1767752821802,-500.0,0.00012361,2]
[400631857,1767752821833,-500.0,0.00012361,2]
[400631858,1767752821865,-500.0,0.00012361,2]
[400631859,1767752821894,-258.45747904,0.00012361,2]
[400631860,1767752821925,-500.0,0.00012361,2]
[400631861,1767752821956,-500.0,0.00012361,2]
[400631862,1767752821986,-500.0,0.00012361,2]
[400631863,1767752822015,-500.0,0.00012361,2]
[400631864,1767752822046,-364.47167302,0.00012361,2]
[400631865,1767752822396,-52.93228563,0.00012361,2]
[400631866,1767752822410,-82.59604135,0.00012361,2]
[400631867,1767752822422,-417.40395865,0.00012361,2]
[400631868,1767752835631,-300.0,0.00012121,2]
[400631869,1767752835662,-82.59604135,0.00012361,2]
[400631870,1767752835691,-500.0,0.00012361,2]
[400631871,1767752835720,-500.0,0.00012361,2]
[400631872,1767752835749,-500.0,0.00012361,2]
[400631873,1767752835785,-500.0,0.00012361,2]
[400631874,1767752835814,-500.0,0.00012361,2]
[400631875,1767752835847,-500.0,0.00012361,2]
[400631876,1767752835876,-500.0,0.00012361,2]
[400631877,1767752835906,-500.0,0.00012361,2]
[400631878,1767752835936,-500.0,0.00012361,2]
[400631879,1767752836087,-500.0,0.00012361,2]
[400631880,1767752836116,-500.0,0.00012361,2]
[400631881,1767752836145,-500.0,0.00012361,2]
[400631882,1767752836173,-500.0,0.00012361,2]
[400631883,1767752836201,-500.0,0.00012361,2]
[400631884,1767752836231,-500.0,0.00012361,2]
[400631885,1767752836259,-500.0,0.00012361,2]
[400631886,1767752836289,-500.0,0.00012361,2]
[400631887,1767752836318,-500.0,0.00012361,2]
[400631888,1767752836347,-500.0,0.00012361,2]
[400631889,1767752836612,-234.8179173,0.00012361,2]
[400631890,1767752836631,-0.01,0.00012361,2]
[400631902,1767752861124,-265.1720827,0.00012361,2]
[400631903,1767752861154,-500.0,0.00012361,2]
[400631904,1767752861183,-500.0,0.00012361,2]
[400631905,1767752861212,-500.0,0.00012361,2]
[400631906,1767752861240,-500.0,0.00012361,2]
[400631907,1767752861269,-500.0,0.00012361,2]
[400631908,1767752861297,-500.0,0.00012361,2]
[400631909,1767752861326,-500.0,0.00012361,2]
[400631910,1767752861355,-500.0,0.00012361,2]
[400631911,1767752861386,-500.0,0.00012361,2]
[400631912,1767752861525,-500.0,0.00012361,2]
[400631913,1767752861559,-500.0,0.00012361,2]
[400631914,1767752861591,-500.0,0.00012361,2]
[400631915,1767752861620,-500.0,0.00012361,2]
[400631916,1767752861650,-500.0,0.00012361,2]
[400631917,1767752861679,-500.0,0.00012361,2]
[400631918,1767752861707,-500.0,0.00012361,2]
[400631919,1767752861735,-500.0,0.00012361,2]
[400631920,1767752861762,-500.0,0.00012361,2]
[400631921,1767752861794,-500.0,0.00012361,2]
[400631922,1767752861891,-500.0,0.00012361,2]
[400631923,1767752861920,-310.20672422,0.00012361,2]
[400631924,1767752861949,-500.0,0.00012361,2]
[400631925,1767752861979,-500.0,0.00012361,2]
[400631926,1767752862010,-500.0,0.00012361,2]
[400631927,1767752862039,-500.0,0.00012361,2]
[400631928,1767752862078,-500.0,0.00012361,2]
[400631929,1767752862116,-500.0,0.00012361,2]
[400631930,1767752862150,-500.0,0.00012361,2]
[400631931,1767752862199,-500.0,0.00012361,2]
[400631932,1767752862470,-500.0,0.00012361,2]
[400631933,1767752862508,-500.0,0.00012361,2]
[400631934,1767752862542,-500.0,0.00012361,2]
[400631935,1767752863002,-379.60655156,0.00012362,2]
[400631936,1767752863027,-500.0,0.00012362,2]
[400631937,1767752863041,-7000.01,0.00012362,2]
[400631938,1767752863055,-9486.44796236,0.00012362,2]
[400631939,1767752863064,-300.0,0.00012363,2]
[400631940,1767752863073,-213.56203764,0.00012363,2]
[400631941,1767752884033,-300.0,0.0001236,2]
[400631942,1767752884065,-500.0,0.00012361,2]
[400631943,1767752884099,-500.0,0.00012361,2]